[Event "4th ESNA Championship 2022"]
[Site "Vaduz"]
[Date "2022.09.30"]
[Round "8.2"]
[White "Berend, Fred"]
[Black "Apol, Luitjen Akselsson"]
[Result "1-0"]
[ECO "B90"]
[WhiteElo "2300"]
[BlackElo "2113"]
[Annotator "TA"]
[PlyCount "83"]
[EventDate "2022.09.25"]
[EventType "tourn"]
[EventCountry "LIE"]
[SourceTitle "playchess.com"]
[Source "ChessBase"]
[SourceQuality "1"]
[TimeControl "40/5400+30:1800+30"]

{[%evp 12,83,6,0,20,13,13,6,14,0,14,16,19,0,22,24,23,13,33,21,33,0,0,0,0,0,10,-25,6,2,2,-50,-49,-56,-63,-170,-173,-163,-180,-332,-245,-225,-168,-226,-177,-320,-226,-216,-197,-223,-221,-222,-211,-575,-580,-532,-526,-609,-609,-1134,-187,-234,-249,-228,129,127,29993,29987,29987,29988,29988,29989,29989,29990]} 1. e4 {[%emt 0:00:06]} c5 {[%emt 0:00:22]} 2. Nf3 {[%emt 0:00:05]} d6 {[%emt 0:00:20]} 3. d4 {[%emt 0:00:05]} cxd4 {[%emt 0:00:27]} 4. Nxd4 {[%emt 0:00:03]} Nf6 {[%emt 0:00:20]} 5. Nc3 {[%emt 0:00:03]} a6 {[%emt 0:00:24]} 6. h3 {[%emt 0:00:14]} e5 {[%emt 0:00:41]} 7. Nb3 {[%emt 0:00:06]} Be6 {[%emt 0:06:43] B90: Sicilian Najdorf: Unusual White 6th moves, 6 Be3 Ng4 and 6 Be3 e5.} 8. Be3 {[%emt 0:01:22]} Nc6 {[%emt 0:00:23]} 9. Qf3 {[%emt 0:01:13]} Rc8 {[%emt 0:01:15] The position is equal.} 10. O-O-O {[%emt 0:01:09]} Na5 {[%emt 0:01:38][%cal Oc8c3]} 11. Bg5 {[%emt 0:08:56]} Be7 {[%emt 0:16:17]} 12. Kb1 {[%emt 0:11:14]} Qc7 {[%emt 0:20:06][%cal Of6e4]} 13. Bxf6 {[%emt 0:07:30]} Bxf6 {[%emt 0:00:22]} 14. Nxa5 {[%emt 0:01:34]} Qxa5 {[%emt 0:00:01]} 15. Nd5 {[%emt 0:00:20]} (15. Rxd6 Be7 16. Rxe6 fxe6 $17) 15... Bd8 {[%emt 0:14:53] [#]} 16. Be2 $146 {[%emt 0:11:02]} ({Predecessor:} 16. c3 Qc5 17. g3 O-O 18. h4 b5 19. Rd2 Rb8 20. g4 Qa7 21. g5 a5 22. Nf6+ {½-½ (34) Tarrio Ocana,F (2450)-Chaika,L (2351) ICCF email 2019}) 16... O-O {[%emt 0:01:08]} 17. Qb3 {[%emt 0:05:41]} Qc5 {[%emt 0:13:12]} 18. Rhf1 {[%emt 0:02:38]} Bg5 {[%emt 0:02:16]} 19. Rd3 {[%emt 0:14:53]} b5 {[%emt 0:02:29][%cal Ob5b4]} 20. Bg4 {[%emt 0:07:16] Threatens to win with Bxe6.} Kh8 {[%emt 0:00:09][%cal Ob5b4]} 21. c3 {[%emt 0:08:46] Prevents b4.} (21. a3 $11) 21... g6 $15 {[%emt 0:02:19]} 22. Qd1 {[%emt 0:17:14][%cal Oh3h4]} f5 {[%emt 0:05:34]} 23. Bf3 {[%emt 0:00:00]} ({Better is} 23. exf5 $15 gxf5 24. Be2) 23... fxe4 $19 {[%emt 0:00:57]} 24. Bxe4 {[%emt 0:00:00][%cal Oh3h4]} Rxf2 {[%emt 0:00:13]} (24... Qc4 25. f3 $11) 25. Nb4 $2 {[%emt 0:00:00]} (25. Rxf2 Qxf2 26. Qf3) 25... Rxf1 {[%emt 0:00:49]} 26. Qxf1 {[%emt 0:00:00]} Bc4 {[%emt 0:00:14]} 27. h4 {[%emt 0:00:00]} (27. Nxa6 $142 Bxd3+ 28. Bxd3) 27... Be7 {[%emt 0:02:22] And now ...Rf8 would win. This bishop pair is nice.} 28. h5 {[%emt 0:00:00]} (28. Nxa6 {was the only chance.} Bxd3+ 29. Qxd3 Qg1+ 30. Kc2) 28... Bxd3+ {[%emt 0:01:35]} (28... gxh5 $2 29. Qf5 Bg8 30. Rg3 $18) 29. Qxd3 {[%emt 0:00:00]} Qg1+ {[%emt 0:01:38]} 30. Kc2 {[%emt 0:00:00]} Qf2+ {[%emt 0:00:04]} (30... gxh5 31. Qf3 Rf8 32. Qxh5 Qf2+ 33. Kb3) 31. Kb3 {[%emt 0:00:00]} a5 {[%emt 0:01:30][%cal Ba6a5,Ba5a4][%mdl 32]} 32. Nd5 {[%emt 0:00:00]} (32. Qh3 Qc5 33. hxg6 Qc4+ 34. Kc2 Qxe4+ 35. Nd3 Rxc3+ 36. bxc3 Qxg6 37. g3) 32... a4+ {[%emt 0:00:05]} 33. Ka3 {[%emt 0:00:00]} Qc5+ {[%emt 0:00:07]} 34. Nb4 {[%emt 0:00:00]} d5 {[%emt 0:03:15]} 35. hxg6 {[%emt 0:00:00][%cal Od3h3]} h6 $2 {[%emt 0:02:15]} ({Stronger than} 35... dxe4 36. Qh3 Bh4 37. Qxh4 $17) (35... Bg5 {[%cal Oc5c3] ( -> ...Qxc3+!)} 36. Bxd5 Qxc3+ $3 {[%mdl 512]} 37. Qxc3 Rxc3+ 38. Bb3 Rg3) 36. Bxd5 {[%emt 0:00:06]} (36. g7+ {was called for.} Kxg7 37. Qg3+ Kf8 38. Bf5) 36... Bg5 $1 {[%emt 0:00:55][%cal Oc5c3] aiming for ...Qxc3+!} 37. Qf1 {[%emt 0:04:04]} Qe3 {[%emt 0:01:02] Prevents Be4.} ({Black should play} 37... Rf8 $19 38. Qe2 Be3) 38. Qxb5 $40 {[%emt 0:01:23][%mdl 128] Qd7 would kill now. White attacks with force.} (38. Qf7 {[#] leads to mate.} Qxc3+ $3 {[%mdl 512]} 39. Bb3 Qxb2+ $3 {[%mdl 512]} 40. Kxb2 a3+ 41. Kxa3 Bc1#) 38... Qc1 $2 {[%emt 0:00:35][%mdl 8192] Loses the game.} (38... Qa7 $16 39. Qxa4 Qxa4+ 40. Kxa4 Kg7) 39. g7+ {[%emt 0:00:50] White mates.} Kh7 {[%emt 0:00:02]} 40. Be4+ {[%emt 0:01:03]} Kg8 {[%emt 0:00:00]} 41. Qd5+ {[%emt 0:30:48]} Kxg7 {[%emt 0:30:01]} 42. Qd7+ {[%emt 0:00:10] Weighted Error Value: White=0.65/Black=0.48} 1-0

[Event "4th ESNA Championship 2022"]
[Site "Vaduz"]
[Date "2022.09.30"]
[Round "8.3"]
[White "Henderson de La Fuente, Lance"]
[Black "Volpinari, Danilo"]
[Result "1-0"]
[ECO "B40"]
[WhiteElo "2504"]
[BlackElo "1929"]
[Annotator "TA"]
[PlyCount "81"]
[EventDate "2022.09.25"]
[EventType "tourn"]
[EventCountry "LIE"]
[SourceTitle "playchess.com"]
[Source "ChessBase"]
[SourceQuality "1"]
[TimeControl "40/5400+30:1800+30"]

{[%evp 9,81,34,33,35,58,39,38,43,41,38,32,22,45,22,21,28,30,33,35,22,55,61,69,59,69,70,120,78,57,43,42,45,57,38,54,55,58,29,67,0,31,18,10,0,30,26,22,14,39,22,32,0,41,31,49,44,47,29,58,67,73,72,183,189,233,222,327,286,722,697,670,669,29990,29991]} 1. e4 {[%emt 0:00:34]} c5 {[%emt 0:00:25]} 2. Nf3 {[%emt 0:00:12][%cal Bg1f3,Bf3d4,Bd4b5][%mdl 32]} e6 {[%emt 0:00:36]} 3. g3 {[%emt 0:00:39]} Nc6 {[%emt 0:01:18]} 4. Bg2 {[%emt 0:00:09]} d6 {[%emt 0:06:29]} 5. d4 {[%emt 0:05:24]} cxd4 {[%emt 0:00:37]} 6. Nxd4 {[%emt 0:00:07] B40: Sicilian: 2...e6, Unusual lines.} Qc7 {[%emt 0:05:22] [#]} 7. Nb5 $146 {[%emt 0:09:12]} ({Predecessor:} 7. O-O Nf6 8. c4 Nxd4 9. Qxd4 Be7 10. Nc3 a6 11. Qd3 O-O 12. Bf4 Nd7 13. b3 {1-0 (40) Zvjaginsev,V (2644)-Sapunov,E (2461) Moscow 2019}) 7... Qb8 {[%emt 0:03:28]} 8. O-O {[%emt 0:01:23] White is slightly better.} a6 {[%emt 0:01:10]} 9. Nd4 {[%emt 0:00:05]} Bd7 {[%emt 0:01:42]} 10. Be3 {[%emt 0:07:43]} Nf6 {[%emt 0:02:32][%cal Bg8f6,Bf6e8,Be8c7][%mdl 32]} 11. c3 {[%emt 0:01:04]} Be7 {[%emt 0:01:23]} 12. f4 {[%emt 0:03:17]} O-O {[%emt 0:12:06]} 13. Nd2 {[%emt 0:04:02]} Qc7 {[%emt 0:02:10]} 14. g4 {[%emt 0:03:34][%cal Bg3g4,Bg4g5][%mdl 32]} Rac8 {[%emt 0:11:13]} 15. g5 {[%emt 0:01:16] [#] Strongly threatening Nxc6.} Ne8 {[%emt 0:00:07]} 16. N2b3 {[%emt 0:07:48] White is more active.} Nxd4 {[%emt 0:09:48]} 17. Nxd4 {[%emt 0:02:14]} ({Of course not} 17. Bxd4 g6 $11) 17... Qd8 {[%emt 0:12:41]} (17... e5 $14) 18. Qd2 {[%emt 0:06:10]} f6 {[%emt 0:04:10]} 19. Bh3 {[%emt 0:05:04]} Nc7 {[%emt 0:00:26]} 20. gxf6 {[%emt 0:05:54]} Rxf6 {[%emt 0:02:45]} 21. Bg2 {[%emt 0:03:56]} Rf8 {[%emt 0:01:26]} 22. Rad1 {[%emt 0:03:00]} Qe8 {[%emt 0:01:24]} 23. Ne2 {[%emt 0:04:31]} Kh8 {[%emt 0:02:09]} 24. e5 {[%emt 0:01:55]} (24. c4 $14) 24... d5 {[%emt 0:00:50]} (24... Bb5 {seems wilder.} 25. exd6 Bxd6 26. Bxb7 Rd8) 25. Rf3 {[%emt 0:02:09]} Qf7 {[%emt 0:05:45]} 26. b3 {[%emt 0:01:34]} Be8 {[%emt 0:04:01]} 27. a4 {[%emt 0:02:35]} Bc6 {[%emt 0:01:32][%cal Od5d4]} 28. Nd4 {[%emt 0:01:01][%cal Be2d4,Bd4f3,Bf3g5][%mdl 32]} Bd7 {[%emt 0:00:17]} 29. Kh1 {[%emt 0:03:29]} g6 {[%emt 0:00:20]} 30. Rff1 {[%emt 0:02:20][%cal Bf3f1,Bf1g1,Bg1g3][%mdl 32]} Rfd8 {[%emt 0:03:27]} 31. Nf3 {[%emt 0:01:51]} Rf8 {[%emt 0:01:33]} 32. Ng5 {[%emt 0:01:00]} Qg8 {[%emt 0:00:20]} 33. Bd4 {[%emt 0:03:03]} h6 {[%emt 0:01:31]} 34. Nh3 {[%emt 0:01:10]} Kh7 {[%emt 0:00:29]} 35. Rg1 {[%emt 0:00:28]} Qf7 {[%emt 0:01:10] [#]} (35... Ne8 $16) 36. Bf1 $1 $18 {[%emt 0:00:37]} Rg8 {[%emt 0:00:27]} 37. Bd3 {[%emt 0:00:10]} Kh8 {[%emt 0:00:41]} (37... Rcf8 {was called for.} 38. Rg2 Be8) 38. Rg3 {[%emt 0:01:09] Hoping for Rdg1.} Rg7 $2 {[%emt 0:00:30]} (38... Rcf8 39. Rdg1 Be8 40. Rxg6 Rxg6 41. Bxg6 Qxg6) 39. Rdg1 {[%emt 0:00:25][%cal Rd3g6]} Rcg8 {[%emt 0:00:25]} 40. f5 {[%emt 0:00:59]} exf5 {[%emt 0:00:55]} 41. e6 {[%emt 0:30:31][%mdl 64] Discovered Attack, Double Attack.  Weighted Error Value: White=0.09 (flawless) /Black=0.37} 1-0

[Event "4th ESNA Championship 2022"]
[Site "Vaduz"]
[Date "2022.09.30"]
[Round "8.4"]
[White "Carpenter, Paul A"]
[Black "Michaelides, Konstantinos"]
[Result "0-1"]
[ECO "C00"]
[WhiteElo "1986"]
[BlackElo "2304"]
[Annotator "TA"]
[PlyCount "92"]
[EventDate "2022.09.25"]
[EventType "tourn"]
[EventCountry "LIE"]
[SourceTitle "playchess.com"]
[Source "ChessBase"]
[SourceQuality "1"]
[TimeControl "40/5400+30:1800+30"]

{[%evp 9,92,8,45,44,51,49,41,32,31,28,28,24,31,25,24,13,25,27,31,36,43,24,122,19,223,216,225,212,220,212,240,81,75,64,105,97,87,93,131,137,139,97,200,98,127,108,94,92,212,202,202,106,408,-7,-11,0,-24,-48,0,14,89,90,92,95,95,95,93,98,94,0,0,0,0,0,0,-1416,-1389,-1192,-1128,-29976,-29977,-29996,-6170,-29978,-865]} 1. e4 {[%emt 0:00:09]} e6 {[%emt 0:00:35]} 2. Nf3 {[%emt 0:00:22]} d5 {[%emt 0:00:39]} 3. Nc3 {[%emt 0:00:14]} Nf6 {[%emt 0:01:12]} 4. e5 {[%emt 0:00:26]} Ne4 {[%emt 0:03:49]} 5. Ne2 {[%emt 0:04:41]} b6 {[%emt 0:07:20]} (5... Bc5 $5 6. d4 $8 Be7 $11) 6. d3 {[%emt 0:09:45] C00: French: Unusual White 2nd moves.} Nc5 {[%emt 0:01:48]} 7. g3 {[%emt 0:01:44]} Be7 {[%emt 0:01:16]} 8. Bg2 {[%emt 0:00:26] White is slightly better.} Bb7 {[%emt 0:03:59]} 9. O-O {[%emt 0:02:52] [#]} Ncd7 $146 {[%emt 0:03:01]} ({Predecessor:} 9... Nc6 10. h4 d4 11. b4 Nd7 12. b5 Ncxe5 13. Nxe5 Bxg2 14. Nxf7 Kxf7 15. Kxg2 Nf6 {1-0 (51) Christensen,E (2033)-Skovgaard,I (2038) Copenhagen 2014}) 10. Re1 {[%emt 0:17:35]} c5 {[%emt 0:01:16]} 11. c3 {[%emt 0:03:21]} Nc6 {[%emt 0:01:38]} 12. d4 {[%emt 0:00:27]} O-O {[%emt 0:04:36]} 13. Nf4 {[%emt 0:02:05][%cal Oc3c4]} Ba6 {[%emt 0:16:59]} 14. h4 {[%emt 0:07:03]} Re8 {[%emt 0:11:37]} 15. Ng5 {[%emt 0:09:49]} Nf8 {[%emt 0:07:11] [#]} (15... Bxg5 $11 16. hxg5 Qe7) 16. Nh5 {[%emt 0:09:14]} (16. Nxd5 $1 $16 {[%cal Od1h5][%mdl 512] Strongly threatening Qh5!} exd5 17. Nxf7 $1) 16... f6 $2 {[%emt 0:12:19]} (16... Ng6 $11) 17. exf6 $18 {[%emt 0:13:47]} Bxf6 {[%emt 0:00:15][%cal Rc5d4]} 18. Qg4 {[%emt 0:00:28][%cal Rg5e6]} Bc8 {[%emt 0:05:21][%cal Rc5d4]} 19. dxc5 {[%emt 0:04:25] Hoping for Bf4.} bxc5 {[%emt 0:03:28]} 20. Qa4 $2 {[%emt 0:00:23]} (20. Bf4 $1 $18 {[%cal Rf4c7] is the precise move to win.}) 20... Bd7 $16 {[%emt 0:02:06]} 21. Qc2 {[%emt 0:00:07]} h6 {[%emt 0:03:08]} 22. Nh3 {[%emt 0:01:14][%cal Bg5h3,Bh3f4,Bf4g6][%mdl 32]} Ne5 {[%emt 0:02:32]} 23. N3f4 {[%emt 0:02:21][%cal Oc3c4]} Bc6 {[%emt 0:00:20]} 24. Be3 {[%emt 0:00:43]} Nfd7 {[%emt 0:01:12]} 25. Ng6 {[%emt 0:02:22] And now Nxe5 would win.} Nc4 {[%emt 0:03:23]} (25... d4 $16 {keeps fighting.}) 26. Bc1 {[%emt 0:02:37]} (26. Rad1 $18 {and White stays clearly on top.}) 26... e5 {[%emt 0:00:24]} 27. b3 {[%emt 0:00:30]} Nd6 {[%emt 0:00:07]} 28. Be3 {[%emt 0:01:47]} (28. Nxf6+ $6 Qxf6 29. Rd1 e4 $11) 28... Rc8 {[%emt 0:00:54]} (28... e4 $16 {was worth a try.}) 29. Rad1 $1 $18 {[%emt 0:00:04]} e4 {[%emt 0:01:25]} 30. Bh3 {[%emt 0:00:30]} (30. Nhf4 $18) 30... d4 $2 {[%emt 0:01:04][%mdl 8192]} (30... Be5 $16 {is tougher.}) 31. Bf4 $2 {[%emt 0:00:36]} ({Only move:} 31. cxd4 $18 cxd4 32. Bxd4) 31... d3 $11 {[%emt 0:00:19] Chess con chili.} 32. Qd2 {[%emt 0:00:40]} Nf7 {[%emt 0:00:22][%cal Oc5c4]} 33. Bf5 {[%emt 0:01:13][%cal Of2f3]} Ra8 {[%emt 0:00:49]} (33... c4 $1 $15) 34. f3 $1 {[%emt 0:00:59][%cal Rf3e4]} Nde5 {[%emt 0:00:31] [#]} (34... c4 $11) 35. Nxe5 $1 $16 {[%emt 0:00:25]} (35. Bxe4 Nxf3+ 36. Bxf3 Bxf3 37. Rxe8+ Qxe8 $15) (35. Nxf6+ Qxf6 36. Nxe5 Nxe5 37. Bxe5 (37. Bxe4 $2 Bxe4 38. Bxe5 Qxf3 $19) 37... Qxf5 $17) 35... Nxe5 {[%emt 0:00:31]} 36. Bxe5 {[%emt 0:00:58]} ({But not} 36. Bxe4 $6 Bxe4 37. Bxe5 Bxf3 38. Nxf6+ (38. Bxf6 Qd6 $11) 38... gxf6 39. Qxh6 Rxe5 $11) ({Weaker is} 36. Nxf6+ Qxf6 37. Bxe5 (37. Bxe4 $2 Bxe4 38. Bxe5 Qxf3 $19) 37... Qxf5 $17) 36... Rxe5 {[%emt 0:00:24]} 37. Nxf6+ {[%emt 0:00:40]} Qxf6 {[%emt 0:00:23]} 38. Bxe4 {[%emt 0:00:46]} Bxe4 {[%emt 0:00:14]} 39. Rxe4 {[%emt 0:00:54]} (39. fxe4 $16 Rd8 40. Re3) 39... Rxe4 $11 {[%emt 0:00:31]} 40. fxe4 $16 {[%emt 0:00:08][%mdl 4096] Endgame KQR-KQR} Rd8 {[%emt 0:00:08]} 41. Re1 {[%emt 0:08:27]} Qf3 {[%emt 0:07:54]} 42. Re3 $2 {[%emt 0:01:39][%mdl 8192] [#]} (42. Kh2 $11) 42... Qxe3+ $3 $19 {[%emt 0:01:17][%mdl 576] Promotion} 43. Qxe3 {[%emt 0:00:51]} d2 {[%emt 0:00:06]} 44. Qxc5 {[%emt 0:00:49]} d1=Q+ {[%emt 0:00:08]} 45. Kf2 {[%emt 0:00:13]} Rf8+ {[%emt 0:00:38]} (45... Rd2+ $142 46. Ke3 Rd3+ 47. Kf4 Qf3+ 48. Ke5 Qf6#) 46. Kg2 {[%emt 0:00:01]} Qf1+ {[%emt 0:00:08] Black used his chance.  Weighted Error Value: White=0.61/Black=0.49} 0-1

[Event "4th ESNA Championship 2022"]
[Site "Vaduz"]
[Date "2022.09.30"]
[Round "8.5"]
[White "Efimov, Igor"]
[Black "Kirby, Peter J."]
[Result "1-0"]
[ECO "D45"]
[WhiteElo "2360"]
[BlackElo "2011"]
[Annotator "TA"]
[PlyCount "71"]
[EventDate "2022.09.25"]
[EventType "tourn"]
[EventCountry "LIE"]
[SourceTitle "playchess.com"]
[Source "ChessBase"]
[SourceQuality "1"]
[TimeControl "40/5400+30:1800+30"]

{[%evp 20,71,30,23,58,37,47,43,37,39,35,13,34,32,39,17,23,31,98,98,99,108,104,99,109,88,96,95,88,98,86,100,93,97,92,97,89,91,98,110,105,100,164,0,104,102,134,118,292,292,516,489,488,431]} 1. d4 {[%emt 0:00:31]} d5 {[%emt 0:00:05]} 2. Nf3 {[%emt 0:00:19]} Nf6 {[%emt 0:00:11]} 3. c4 {[%emt 0:00:10]} c6 {[%emt 0:00:25]} 4. Nc3 {[%emt 0:00:16]} e6 {[%emt 0:00:45]} 5. e3 {[%emt 0:00:35]} Nbd7 {[%emt 0:00:12]} 6. Qc2 {[%emt 0:00:14]} Bd6 {[%emt 0:01:10]} 7. b3 {[%emt 0:00:25][%cal Bb2b3,Bb3c4,Bc4c5][%mdl 32]} O-O {[%emt 0:03:04]} 8. Bb2 {[%emt 0:00:36]} Re8 {[%emt 0:03:51]} 9. Be2 {[%emt 0:00:40]} dxc4 {[%emt 0:02:45]} 10. bxc4 {[%emt 0:05:27]} e5 {[%emt 0:00:52][%cal Be6e5,Be5e4][%mdl 32]} 11. O-O {[%emt 0:02:24]} e4 {[%emt 0:06:46] D45: Semi-Slav: 5 e3.} 12. Ng5 {[%emt 0:01:00][%cal Rg5e4]} Qe7 {[%emt 0:02:07]} 13. c5 {[%emt 0:03:26]} Bb8 {[%emt 0:04:51] White is slightly better.} 14. Bc4 {[%emt 0:02:34]} Bxh2+ $1 {[%emt 0:08:21]} 15. Kh1 {[%emt 1:19:23]} Nd5 {[%emt 0:00:19]} 16. Qxe4 {[%emt 0:00:00]} Qxe4 {[%emt 0:02:31]} 17. Ncxe4 {[%emt 0:00:00]} Bc7 {[%emt 0:01:42] Threatens to win with ...h6.} 18. Nc3 {[%emt 0:00:00]} h6 {[%emt 0:08:06] [#]} (18... N7f6 $14) 19. Nxf7 $1 $16 {[%emt 0:02:00] [#]} Kxf7 $146 {[%emt 0:01:12]} ({Predecessor:} 19... N7f6 20. Ne5 Bxe5 21. dxe5 Rxe5 22. Kg1 Re8 23. e4 Nxe4 24. Nxd5 cxd5 25. Bxd5+ Kh7 {1-0 (39) Keglevic,P-Milovanovic,M corr 1980}) 20. e4 $36 {[%emt 0:00:00][%mdl 2112] Pin. White is really pushing.} N7f6 {[%emt 0:01:09]} 21. exd5 {[%emt 0:00:00]} cxd5 {[%emt 0:02:29]} 22. Nxd5 {[%emt 0:00:00]} Nxd5 {[%emt 0:01:03]} 23. Bxd5+ {[%emt 0:00:00]} Be6 {[%emt 0:05:04]} 24. Bf3 {[%emt 0:00:00] aiming for d5.} Rad8 {[%emt 0:02:59] Against d5} 25. Rfe1 {[%emt 0:00:00]} Bd5 {[%emt 0:01:56]} 26. Rxe8 {[%emt 0:00:00]} Kxe8 {[%emt 0:00:10]} 27. Re1+ {[%emt 0:00:00]} Kf7 {[%emt 0:00:30]} 28. Re3 {[%emt 0:00:00]} Bxf3 {[%emt 0:06:53]} 29. Rxf3+ {[%emt 0:00:00][%mdl 4096] Endgame KRB-KRB} Ke6 {[%emt 0:00:09]} 30. Re3+ {[%emt 0:00:00]} Kf7 {[%emt 0:00:47] [#]} (30... Kd7 $16 {was worth a try.}) 31. Rf3+ {[%emt 0:00:00]} ({White should try} 31. Ra3 $1 $18 {[%cal Ra3a7]}) 31... Ke6 {[%emt 0:00:43]} 32. Ra3 {[%emt 0:00:00]} a6 {[%emt 0:04:22]} 33. Re3+ {[%emt 0:00:00]} Kf7 $2 {[%emt 0:00:21]} (33... Kd7 $16 34. d5 Rf8) 34. Rb3 $18 {[%emt 0:00:00]} Rb8 {[%emt 0:00:32]} (34... b6 35. cxb6 Bb8) 35. d5 {[%emt 0:00:00][%cal Bd4d5,Bd5d6][%mdl 32]} Re8 {[%emt 0:04:00][%cal Re8e1]} 36. d6 {[%emt 0:00:00] Weighted Error Value: White=0.08 (flawless) /Black=0.24 (precise)} 1-0

[Event "4th ESNA Championship 2022"]
[Site "Vaduz"]
[Date "2022.10.01"]
[Round "9.1"]
[White "Kirby, Peter J."]
[Black "Mizzi, Jack"]
[Result "1/2-1/2"]
[ECO "D35"]
[WhiteElo "2011"]
[BlackElo "1863"]
[Annotator "TA"]
[PlyCount "51"]
[EventDate "2022.09.25"]
[EventType "tourn"]
[EventCountry "LIE"]
[SourceTitle "playchess.com"]
[Source "ChessBase"]
[SourceQuality "1"]
[TimeControl "40/5400+30:1800+30"]

{[%evp 10,51,19,12,14,0,19,-6,0,-13,10,8,19,20,9,17,21,10,18,0,0,0,0,0,0,0,12,0,16,0,0,0,0,-4,12,9,41,41,42,14,20,25,27,27]} 1. d4 {[%emt 0:00:03]} Nf6 {[%emt 0:00:12]} 2. c4 {[%emt 0:00:07]} e6 {[%emt 0:00:05]} 3. Nc3 {[%emt 0:00:05]} d5 {[%emt 0:00:26]} 4. cxd5 {[%emt 0:00:08]} exd5 {[%emt 0:00:07]} 5. Bg5 {[%emt 0:00:08]} c6 {[%emt 0:00:56]} 6. e3 {[%emt 0:00:18]} h6 {[%emt 0:01:50] 6...Bd6 is the modern continuation. D35: Queen's Gambit Declined: Exchange Variation.} 7. Bf4 {[%emt 0:07:04]} Bd6 {[%emt 0:03:41]} 8. Bg3 {[%emt 0:03:39]} O-O {[%emt 0:02:59] The position is equal.} 9. Bd3 {[%emt 0:01:13]} Re8 {[%emt 0:02:27]} 10. Nge2 {[%emt 0:06:45]} Bxg3 {[%emt 0:16:37]} 11. Nxg3 {[%emt 0:02:54]} Nbd7 {[%emt 0:05:48]} 12. O-O {[%emt 0:07:17]} Nf8 {[%emt 0:01:54] [#]} 13. h3 $146 {[%emt 0:07:53]} ({Predecessor:} 13. b4 a6 14. a4 Ne6 15. b5 cxb5 16. axb5 a5 17. Na4 b6 18. Rc1 Nf8 19. Rc6 Rb8 20. Bf5 Be6 {½-½ (20) Zaja,I (2446)-Loncar,R (2353) Hum na Sutli 2017}) 13... Qd6 {[%emt 0:06:42]} 14. Nf5 {[%emt 0:02:37]} Bxf5 {[%emt 0:00:45]} 15. Bxf5 {[%emt 0:00:02]} g6 {[%emt 0:03:53]} 16. Bc2 {[%emt 0:01:58]} Kg7 {[%emt 0:05:53]} 17. a3 {[%emt 0:01:24]} h5 {[%emt 0:06:53]} 18. Qd3 {[%emt 0:03:53]} Re7 {[%emt 0:11:56]} 19. Rae1 {[%emt 0:01:07]} Rae8 {[%emt 0:00:22]} 20. Na4 {[%emt 0:05:36]} Ne4 {[%emt 0:03:11]} 21. b4 {[%emt 0:03:59]} b6 {[%emt 0:02:28]} 22. Nc3 {[%emt 0:00:44]} Nd7 {[%emt 0:00:55]} 23. Nxe4 {[%emt 0:02:28]} dxe4 {[%emt 0:01:34]} 24. Qc3 {[%emt 0:03:41]} Nf6 {[%emt 0:02:13]} 25. Bb3 {[%emt 0:00:36]} Nd5 {[%emt 0:03:58]} 26. Bxd5 {[%emt 0:01:08] Weighted Error Value: White=0.08 (flawless) /Black=0.08 (flawless)} 1/2-1/2